{"text_format":"3","workbook":"xlsx","n_sheets":4,"sheets":["チェック用","チェック記録","説明","リスト"],"not_rendered":{"macros":1},"read":"whole","date_system":"1900"}

{"sheet":"チェック用","index":0,"n_rows":69,"n_cols":12,"rows_kept":69,"merged":[[1,2,1,3],[2,2,2,3],[3,2,3,3],[4,2,4,3],[5,2,5,3],[6,2,6,3],[7,2,7,3],[8,2,8,3],[9,2,9,3],[10,2,10,3],[11,2,11,3],[12,2,12,3],[13,2,13,3],[14,2,14,3],[15,2,15,3],[16,2,16,3],[17,2,17,3],[18,2,18,3],[19,2,19,3],[20,2,20,3],[21,2,21,3],[22,2,22,3],[23,2,38,2],[23,4,65,4],[39,2,65,2]]}
["Ver_1.1"]
[null,"NO","チェック内容",null,"チェック基準","チェック","加重","計算用"]
[null,1,"メガポケモンの数は適切か",null,"３：２～１匹\n１：上記以外",null,3,{"$f":"F3*G3","v":0},null,{"$f":"G3*3","v":9},{"$f":"G3*1","v":3}]
[null,2,"メガポケモンが複数いる場合、役割は分かれているか",null,"３：明確に分かれている\n２：たぶん被ってない\n１：かぶり過ぎワロタ",null,3,{"$f":"F4*G4","v":0},null,{"$f":"G4*3","v":9},{"$f":"G4*1","v":3}]
[null,3,"メガポケモンが複数いる場合、苦手なポケモンはかぶっていないか\n【補足】\n下記のトップメタ33匹を参考に",null,"３：明確に分かれている\n２：たぶん被ってない\n１：かぶり過ぎワロタ",null,3,{"$f":"F5*G5","v":0},null,9,3]
[null,4,"浮いているポケモンはいくついるか（タイプ飛行or特性浮遊をカウント。ふうせんもちはカウントしない）",null,"３：2匹以上\n２：1匹\n１：0匹",null,3,0,null,9,3]
[null,5,"電気の一貫性を消せているか\n（地面タイプor特性ちくでん等の無効化特性→2ポイント\n特性ちくでん等の無効化特性でない電気タイプ（ロトム水のような等倍のポケモンは除外する）\n→1ポイント\nでの合計）",null,"３：4ポイント以上\n２：3～2ポイント\n１：2ポイント未満",null,3,0,null,9,3]
[null,6,"竜の一貫性を消せているか\n（フェアリータイプ→2ポイント\n鋼タイプ→1ポイントでの合計）",null,"３：4ポイント以上\n２：3～2ポイント\n１：2ポイント未満",null,3,0,null,9,3]
[null,7,"催眠対策はできているか",null,"３：明確な処理ルートあり\n２：ラム持ちや草タイプのポケモン任せ\n１：うそ・・・私のPT催眠に弱すぎ・・・・・・",null,3,0,null,9,3]
[null,8,"共通弱点の最大値はいくつか",null,"３：1つ\n２：2つ\n１：3つ以上",null,3,0,null,9,3]
[null,9,"物理と特殊の比率はいくつか\n（両刀のポケモンは実値が高い方とする）",null,"３：3:3\n２：4:2or2:4\n１：上記以外",null,3,0,null,9,3]
[null,10,"ちいさくなる系統の戦術に対して対策はできているか",null,"３：明確な処理ルートあり\n２：80属以上でのちょうはつ持ちorほえる持ちあり\n１：うそ・・・私のPT（以下略",null,3,0,null,9,3]
[null,11,"バトン戦術に対して対策はできているか",null,"３：明確な処理ルートあり\n２：80属以上でのちょうはつorほえる持ちあり\n１：うそ・・・私のPT（以下略",null,3,0,null,9,3]
[null,12,"102属より速いポケモンは何匹いるか（スカーフ持ちで110属より早い場合もカウントしてよい）",null,"３：3匹以上\n２：2匹\n１：1匹以下",null,3,0,null,9,3]
[null,13,"先制技もちは何匹いるか",null,"３：2匹以上\n２：1匹\n１：0匹",null,3,0,null,9,3]
[null,14,"炎技持ちは何匹いるか",null,"３：2匹以上\n２：1匹\n１：0匹",null,3,0,null,{"$f":"G16*3","v":9},{"$f":"G16*1","v":3}]
[null,15,"氷技持ちは何匹いるか",null,"３：3匹以上\n２：2匹\n１：1匹以下",null,3,0,null,9,3]
[null,16,"地雷型は（かなり型がマイナーで相手から読まれにくい）何匹いるか",null,"３：2～3匹\n２：1or4匹\n１：上記以外",null,3,0,null,9,3]
[null,17,"PTの合計種族値はいくつか\n（メガポケモンはメガ進化前と後の平均値を採用する）",null,"３：3500以上\n２：3100～3499\n１：3100未満",null,3,{"$f":"F19*G19","v":0},null,{"$f":"G19*3","v":9},{"$f":"G19*1","v":3}]
[null,18,"PTの6匹のシナジーはどうか",null,"３：PT内での組合せで明確なコンボがあり、決まれば一気に勝負が決まるような組合せシナジーがある\n２：タイプ相性・特性を踏まえ相性の良い組み合わせが二組以上ある\n１：上記以外",null,3,{"$f":"F20*G20","v":0},null,{"$f":"G20*3","v":9},{"$f":"G20*1","v":3}]
[null,19,"PTの経験値はいくつか",null,"３：100戦以上あり\n２：20～99戦\n１：20戦未満",null,3,0,null,9,3]
[null,20,"メジャーな構築/流行の構築に対しての基本選出と立ち回りについて確立されているか。\n（例）バシャナットサンダー、\n　　　カバルカカイリュー　等",null,"３：選出・立ち回りをほぼ決めており、勝率も7割以上\n２：明確な選出・立ち回りはないもののある程度戦える。勝率5割以上\n１：勝率5割以下のおてぃんてぃん",null,3,0,null,9,3]
[null,21,"トップメタ上位33匹に対しての相性はどうか\n（2014年7月18日時点のトップメタ43匹。KP等を参考にサントスの独断で選定）",null,"-","以下、各ポケモンごと記入","-","-",null,0,0]
[null,"21-1","メガ","ガブリアス","【以下共通チェック基準】\n３：うちのPTなら対策バッチリ！カモポケモンだ！\n２：可もなく不可もなく。選出されても別にきつくない\n１：辛すぎ・・・もう無理・・・・ﾏﾘｶｰしよ・・・・",null,2,0,null,6,2]
[null,"21-2",null,"ゲンガー",null,null,2,0,null,6,2]
[null,"21-3",null,"ハッサム",null,null,2,0,null,6,2]
[null,"21-4",null,"バンギラス",null,null,2,0,null,6,2]
[null,"21-5",null,"ルカリオ",null,null,2,0,null,6,2]
[null,"21-6",null,"フシギバナ",null,null,2,0,null,6,2]
[null,"21-7",null,"ガルーラ",null,null,2,0,null,6,2]
[null,"21-8",null,"ギャラドス",null,null,2,0,null,6,2]
[null,"21-9",null,"バシャーモ",null,null,2,0,null,6,2]
[null,"21-10",null,"クチート",null,null,2,0,null,6,2]
[null,"21-11",null,"リザードンX",null,null,2,0,null,6,2]
[null,"21-12",null,"リザードンY",null,null,2,0,null,6,2]
[null,"21-13",null,"ヘラクロス",null,null,2,0,null,6,2]
[null,"21-14",null,"カイロス",null,null,2,0,null,6,2]
[null,"21-15",null,"ライボルト",null,null,2,0,null,6,2]
[null,"21-16",null,"サーナイト",null,null,2,0,null,6,2]
[null,"21-17","非メガ","クレセリア",null,null,2,0,null,6,2]
[null,"21-18",null,"マリルリ",null,null,2,0,null,6,2]
[null,"21-19",null,"ファイアロー",null,null,2,0,null,6,2]
[null,"21-20",null,"ヒードラン",null,null,2,0,null,6,2]
[null,"21-21",null,"ボルトロス（化身）",null,null,1,0,null,3,1]
[null,"21-22",null,"ギルガルド",null,null,2,0,null,6,2]
[null,"21-23",null,"ポリゴン２",null,null,2,0,null,6,2]
[null,"21-24",null,"カイリュー",null,null,1,0,null,3,1]
[null,"21-25",null,"キノガッサ",null,null,1,0,null,3,1]
[null,"21-26",null,"エルフーン",null,null,1,0,null,3,1]
[null,"21-27",null,"ランドロス（霊獣）",null,null,1,0,null,3,1]
[null,"21-28",null,"カバルドン",null,null,1,0,null,3,1]
[null,"21-29",null,"ゲッコウガ",null,null,1,0,null,3,1]
[null,"21-30",null,"ライコウ",null,null,1,0,null,3,1]
[null,"21-31",null,"ロトム（水）",null,null,1,0,null,3,1]
[null,"21-32",null,"ロトム（火）",null,null,1,0,null,3,1]
[null,"21-33",null,"ローブシン",null,null,1,0,null,3,1]
[null,"21-34",null,"スイクン",null,null,1,0,null,3,1]
[null,"21-35",null,"サザンドラ",null,null,1,0,null,3,1]
[null,"21-36",null,"ニンフィア",null,null,1,0,null,{"$f":"G59*3","v":3},{"$f":"G59*1","v":1}]
[null,"21-37",null,"ソーナンス",null,null,1,0,null,3,1]
[null,"21-38",null,"グライオン",null,null,1,0,null,3,1]
[null,"21-39",null,"オーロット",null,null,1,0,null,3,1]
[null,"21-40",null,"ナットレイ",null,null,1,0,null,3,1]
[null,"21-41",null,"ラティオス",null,null,1,0,null,3,1]
[null,"21-42",null,"クレッフィ",null,null,1,0,null,3,1]
[null,"21-43",null,"トゲキッス",null,null,1,0,null,3,1]
[{"$nulls":6},"合計",{"$f":"SUM(H24:H66)+SUM(H3:H22)","v":0},null,{"$f":"SUM(J3:J66)","v":375},{"$f":"SUM(K3:K66)","v":125},{"$f":"J67-K67","v":250}]
[{"$nulls":6},"評価値",{"$f":"(H67-125)*2/5","v":-50},null,"最高","最低","差分"]
[{"$nulls":6},"切り捨て",{"$f":"ROUNDDOWN(H68,0)","v":-50}]

{"sheet":"チェック記録","index":1,"n_rows":54,"n_cols":11,"rows_kept":54,"merged":[[2,1,3,1],[2,2,3,2],[2,3,3,3],[2,4,2,9],[2,10,3,10]]}
[null,null,{"$f":"チェック用!H69","v":-50},{"$f":"NOW()","v":"2014-07-18T15:37:45.340"}]
[]
[null,"NO","点数","採点日時","PT",{"$nulls":5},"コメント"]
[{"$nulls":4},1,2,3,4,5,6]
[null,1]
[null,2]
[null,3]
[null,4]
[null,5]
[null,6]
[null,7]
[null,8]
[null,9]
[null,10]
[null,11]
[null,12]
[null,13]
[null,14]
[null,15]
[null,16]
[null,17]
[null,18]
[null,19]
[null,20]
[null,21]
[null,22]
[null,23]
[null,24]
[null,25]
[null,26]
[null,27]
[null,28]
[null,29]
[null,30]
[null,31]
[null,32]
[null,33]
[null,34]
[null,35]
[null,36]
[null,37]
[null,38]
[null,39]
[null,40]
[null,41]
[null,42]
[null,43]
[null,44]
[null,45]
[null,46]
[null,47]
[null,48]
[null,49]
[null,50]

{"sheet":"説明","index":2,"n_rows":27,"n_cols":3,"rows_kept":27}
[]
[null,"1動作環境"]
[null,"エクセル2003","あやしいかも"]
[null,"エクセル2007","たぶん大丈夫"]
[null,"エクセル2010","OK"]
[null,"エクセル2013","たぶん大丈夫"]
[null,"オープンoffice\nのエクセル","不明"]
[null,"※Ver_0.1（テスト）版リリースでのテスト結果"]
[]
[null,"2.使用にあたっての注意事項"]
[null,"①本ツールはあくまでサントスが自分のPTチェック観点をまとめたものです。このツールでの高評価のPTが必ずしも素晴らしいPTとは限らないので悪しからず。（逆もまた然り）"]
[null,"②本ツールについての質問は原則受け付けません。"]
[null,"③本ツールについての責任は負いません。"]
[null,"④本ツールについての苦情は受け付けません。"]
["NEW","⑤拡張子がxlsのものとxlsxのものの二つを作成しました。ご使用のOS/オフィスのバージョンに合わせて使い分けてください。"]
[]
[null,"3.使い方"]
[null,"①「チェック用」シートのチェック覧に１～３の数値をチェック内容・チェック基準に従いながら記入してください。"]
[null,"②すべてのチェックが終わったら、結果表示ボタンを押下してください。エクセルファイルを開くときに「マクロを有効」にしていないと本ボタンが動かないので気を付けてください。"]
[null,"③チェック内容に応じたメッセージが出ます。"]
[null,"④チェック欄を一度全部消したい場合は「前回チェック削除」ボタンを押下するとクリアしてくれます。適宜使いましょう。（別に使わなくても良い）"]
["NEW","⑤チェック終了時にチェック記録を残すかについて問いが来ます。残す場合は「チェック記録」シートに点数と日付が自動で入力されるため、今回チェックしたPTとコメントを記入してください。"]
[]
[]
[null,"4.更新情報"]
[null,"①Ver_0.1（テスト）版リリース→2014/3/14"]
["NEW","②Ver_1.1版リリース→2014/7/18"]

{"sheet":"リスト","index":3,"n_rows":4,"n_cols":2,"rows_kept":4}
[]
[null,3]
[null,2]
[null,1]